[Event "*** Titled Tuesday Blitz"]
[Site "Chess.com"]
[Date "2020.04.21"]
[Round "5"]
[White "Keaton87"]
[Black "2nd_life"]
[Result "1-0"]
[WhiteElo "2682"]
[BlackElo "2409"]
[TimeControl "180+1"]
[EndTime "10:57:07 PDT"]
[Termination "Keaton87 won on time"]

1. d4 {[%clk 0:03:00.9]} 1... Nf6 {[%clk 0:02:59.4]} 2. Bg5 {[%clk 0:03:00.6]}
2... e6 {[%clk 0:02:58.7]} 3. Nd2 {[%clk 0:03:00.3]} 3... h6 {[%clk 0:02:58]} 4.
Bh4 {[%clk 0:03:00]} 4... c5 {[%clk 0:02:55.9]} 5. e4 {[%clk 0:02:59.9]} 5... d5
{[%clk 0:02:33.1]} 6. e5 {[%clk 0:02:59.5]} 6... g5 {[%clk 0:02:32.6]} 7. Bg3
{[%clk 0:02:57.1]} 7... Ne4 {[%clk 0:02:18.3]} 8. Nxe4 {[%clk 0:02:43.2]} 8...
dxe4 {[%clk 0:02:18.3]} 9. Ne2 {[%clk 0:02:37.3]} 9... Nc6 {[%clk 0:02:16.7]}
10. dxc5 {[%clk 0:02:24.9]} 10... Qa5+ {[%clk 0:02:02.3]} 11. Nc3 {[%clk
0:02:17.2]} 11... Bxc5 {[%clk 0:01:57.7]} 12. a3 {[%clk 0:02:12.2]} 12... Bd4
{[%clk 0:01:53.3]} 13. Qd2 {[%clk 0:02:00.7]} 13... Bxe5 {[%clk 0:01:25.7]} 14.
b4 {[%clk 0:01:35.1]} 14... Qd8 {[%clk 0:01:01.1]} 15. Qxd8+ {[%clk 0:01:33.4]}
15... Kxd8 {[%clk 0:01:00.4]} 16. Bxe5 {[%clk 0:01:33.4]} 16... Nxe5 {[%clk
0:01:00.3]} 17. O-O-O+ {[%clk 0:01:33.1]} 17... Ke7 {[%clk 0:01:00.4]} 18. Nxe4
{[%clk 0:01:33.1]} 18... b6 {[%clk 0:00:58]} 19. h4 {[%clk 0:01:29.2]} 19... f5
{[%clk 0:00:50.4]} 20. Nd6 {[%clk 0:01:25.9]} 20... Ng4 {[%clk 0:00:42.2]} 21.
Rd2 {[%clk 0:01:20.6]} 21... Bd7 {[%clk 0:00:36.7]} 22. Bb5 {[%clk 0:01:11]}
22... Bxb5 {[%clk 0:00:25.7]} 23. Nxb5 {[%clk 0:01:11.9]} 23... a6 {[%clk
0:00:26]} 24. Nd4 {[%clk 0:01:10.3]} 24... Kf6 {[%clk 0:00:18.9]} 25. Re1 {[%clk
0:01:03.2]} 25... Rhe8 {[%clk 0:00:17.6]} 26. f3 {[%clk 0:00:50.9]} 26... Ne5
{[%clk 0:00:15.2]} 27. Rde2 {[%clk 0:00:51]} 27... Rad8 {[%clk 0:00:10.8]} 28.
hxg5+ {[%clk 0:00:35]} 28... hxg5 {[%clk 0:00:10.6]} 29. Rxe5 {[%clk 0:00:18.6]}
29... Rxd4 {[%clk 0:00:10.7]} 30. c3 {[%clk 0:00:19.3]} 30... Rd6 {[%clk
0:00:09.1]} 31. Kc2 {[%clk 0:00:19.8]} 31... Red8 {[%clk 0:00:08.1]} 32. R5e2
{[%clk 0:00:18.6]} 32... Rc6 {[%clk 0:00:06.7]} 33. Kb3 {[%clk 0:00:18.5]} 33...
Rd3 {[%clk 0:00:06.5]} 34. Rc2 {[%clk 0:00:18.6]} 34... f4 {[%clk 0:00:06.4]}
35. Rh1 {[%clk 0:00:18.2]} 35... Kf5 {[%clk 0:00:05.6]} 36. Rh8 {[%clk
0:00:18.3]} 36... Re3 {[%clk 0:00:05.5]} 37. Rf8+ {[%clk 0:00:18.6]} 37... Kg6
{[%clk 0:00:05.4]} 38. Rg8+ {[%clk 0:00:19]} 38... Kf7 {[%clk 0:00:05.4]} 39.
Rxg5 {[%clk 0:00:18.3]} 39... Kf6 {[%clk 0:00:06.3]} 40. Rg8 {[%clk 0:00:18.1]}
40... b5 {[%clk 0:00:06.2]} 41. Rf8+ {[%clk 0:00:18.6]} 41... Kg5 {[%clk
0:00:06.2]} 42. Rd8 {[%clk 0:00:19.2]} 42... e5 {[%clk 0:00:06.2]} 43. Rf8
{[%clk 0:00:19.2]} 43... Kh4 {[%clk 0:00:06]} 44. Rg8 {[%clk 0:00:19.2]} 44...
Rd3 {[%clk 0:00:02.8]} 45. Rc1 {[%clk 0:00:19.3]} 1-0

[Event "*** Titled Tuesday Blitz"]
[Site "Chess.com"]
[Date "2020.04.21"]
[Round "5"]
[White "Majesth"]
[Black "fabianvivasz"]
[Result "0-1"]
[WhiteElo "2489"]
[BlackElo "2347"]
[TimeControl "180+1"]
[EndTime "10:57:07 PDT"]
[Termination "fabianvivasz won on time"]

1. d4 {[%clk 0:03:00.9]} 1... Nf6 {[%clk 0:02:56.7]} 2. Nc3 {[%clk 0:03:00.6]}
2... d5 {[%clk 0:02:54.5]} 3. Bf4 {[%clk 0:03:00.5]} 3... c5 {[%clk 0:02:53.7]}
4. e3 {[%clk 0:02:59.8]} 4... Bf5 {[%clk 0:02:34.8]} 5. Nb5 {[%clk 0:02:54.5]}
5... Na6 {[%clk 0:02:33.3]} 6. Nf3 {[%clk 0:02:50.2]} 6... e6 {[%clk 0:02:28.6]}
7. h3 {[%clk 0:02:48.2]} 7... h6 {[%clk 0:02:26]} 8. c3 {[%clk 0:02:43.6]} 8...
Be7 {[%clk 0:02:23.7]} 9. Be2 {[%clk 0:02:43.2]} 9... O-O {[%clk 0:02:23.2]} 10.
O-O {[%clk 0:02:43.3]} 10... Ne4 {[%clk 0:02:19.4]} 11. a4 {[%clk 0:02:35.7]}
11... c4 {[%clk 0:02:00.4]} 12. Nd2 {[%clk 0:02:11.5]} 12... Nd6 {[%clk
0:01:57.3]} 13. Nxd6 {[%clk 0:01:20]} 13... Bxd6 {[%clk 0:01:58.2]} 14. Bxd6
{[%clk 0:01:19.6]} 14... Qxd6 {[%clk 0:01:59.1]} 15. e4 {[%clk 0:01:20]} 15...
Bh7 {[%clk 0:01:50.7]} 16. e5 {[%clk 0:01:19.9]} 16... Qc6 {[%clk 0:01:46.8]}
17. f4 {[%clk 0:01:18.7]} 17... Rab8 {[%clk 0:01:37.8]} 18. g4 {[%clk 0:01:17]}
18... b5 {[%clk 0:01:35.6]} 19. axb5 {[%clk 0:01:08.5]} 19... Rxb5 {[%clk
0:01:36.5]} 20. b4 {[%clk 0:01:05.2]} 20... Ra8 {[%clk 0:01:05]} 21. f5 {[%clk
0:00:45.8]} 21... exf5 {[%clk 0:00:59.6]} 22. gxf5 {[%clk 0:00:44.5]} 22... f6
{[%clk 0:00:49.5]} 23. exf6 {[%clk 0:00:31.1]} 23... Qxf6 {[%clk 0:00:49.1]} 24.
Nf3 {[%clk 0:00:17.3]} 24... Nc7 {[%clk 0:00:47.6]} 25. Ne5 {[%clk 0:00:14.5]}
25... a5 {[%clk 0:00:37.9]} 26. bxa5 {[%clk 0:00:15.4]} 26... Rbxa5 {[%clk
0:00:34.3]} 27. Rxa5 {[%clk 0:00:14.2]} 27... Rxa5 {[%clk 0:00:35.2]} 28. Qb1
{[%clk 0:00:10]} 28... Rb5 {[%clk 0:00:13.4]} 29. Qa2 {[%clk 0:00:07.3]} 29...
Rb6 {[%clk 0:00:11.2]} 30. Qa7 {[%clk 0:00:05.5]} 30... Ne8 {[%clk 0:00:09.4]}
31. Qd7 {[%clk 0:00:03.5]} 31... Qg5+ {[%clk 0:00:08.5]} 32. Kh1 {[%clk
0:00:01.9]} 32... Nd6 {[%clk 0:00:04.7]} 0-1

[Event "*** Titled Tuesday Blitz"]
[Site "Chess.com"]
[Date "2020.04.21"]
[Round "5"]
[White "Echecmat"]
[Black "AttilaTurzo"]
[Result "1-0"]
[WhiteElo "2176"]
[BlackElo "2457"]
[TimeControl "180+1"]
[EndTime "10:57:07 PDT"]
[Termination "Echecmat won by resignation"]

1. e4 {[%clk 0:03:00.6]} 1... c5 {[%clk 0:02:59.7]} 2. Nf3 {[%clk 0:02:59]} 2...
Nc6 {[%clk 0:02:59.9]} 3. d4 {[%clk 0:02:56.3]} 3... cxd4 {[%clk 0:03:00.8]} 4.
Nxd4 {[%clk 0:02:56.8]} 4... Nf6 {[%clk 0:03:01.2]} 5. Nc3 {[%clk 0:02:57]} 5...
d6 {[%clk 0:03:01.9]} 6. h3 {[%clk 0:02:55.5]} 6... e5 {[%clk 0:02:55.6]} 7.
Nde2 {[%clk 0:02:51.9]} 7... Be6 {[%clk 0:02:43.5]} 8. g4 {[%clk 0:02:49.1]}
8... d5 {[%clk 0:02:36.7]} 9. exd5 {[%clk 0:02:33.9]} 9... Nxd5 {[%clk
0:02:36.4]} 10. Bg2 {[%clk 0:02:32.4]} 10... Bb4 {[%clk 0:02:08.6]} 11. O-O
{[%clk 0:02:25.6]} 11... Nxc3 {[%clk 0:01:48.5]} 12. Nxc3 {[%clk 0:02:25]} 12...
Bxc3 {[%clk 0:01:47.2]} 13. bxc3 {[%clk 0:02:24.5]} 13... Qxd1 {[%clk
0:01:41.1]} 14. Rxd1 {[%clk 0:02:23.9]} 14... Rc8 {[%clk 0:01:35.8]} 15. Rb1
{[%clk 0:02:20.4]} 15... b6 {[%clk 0:01:28.4]} 16. a4 {[%clk 0:01:51.6]} 16...
Na5 {[%clk 0:01:24.7]} 17. Bd2 {[%clk 0:01:30.9]} 17... Ke7 {[%clk 0:01:18.6]}
18. Be4 {[%clk 0:01:14.8]} 18... h5 {[%clk 0:01:09.5]} 19. f3 {[%clk 0:01:06.2]}
19... hxg4 {[%clk 0:01:08.8]} 20. hxg4 {[%clk 0:01:06.4]} 20... Nc4 {[%clk
0:01:04.5]} 21. Be1 {[%clk 0:00:58.5]} 21... Rhd8 {[%clk 0:00:58.9]} 22. Bh4+
{[%clk 0:00:50.7]} 22... f6 {[%clk 0:00:58.8]} 23. Be1 {[%clk 0:00:42.1]} 23...
g5 {[%clk 0:00:56.1]} 24. Kf2 {[%clk 0:00:41.3]} 24... Bd7 {[%clk 0:00:50.3]}
25. Ra1 {[%clk 0:00:33.7]} 25... Nb2 {[%clk 0:00:50.2]} 26. Rdb1 {[%clk
0:00:28.1]} 26... Nxa4 {[%clk 0:00:50.3]} 27. Rb4 {[%clk 0:00:24.2]} 27... b5
{[%clk 0:00:38.6]} 28. c4 {[%clk 0:00:22.3]} 28... Rxc4 {[%clk 0:00:36.7]} 29.
Rxc4 {[%clk 0:00:20.5]} 29... bxc4 {[%clk 0:00:37.6]} 30. Bb4+ {[%clk
0:00:19.7]} 30... Kf7 {[%clk 0:00:27.9]} 31. Bd5+ {[%clk 0:00:20]} 31... Kg7
{[%clk 0:00:26.3]} 32. Bxc4 {[%clk 0:00:20.2]} 32... Rc8 {[%clk 0:00:24.9]} 33.
Bb3 {[%clk 0:00:20.5]} 33... Rb8 {[%clk 0:00:18.3]} 34. Bxa4 {[%clk 0:00:15.8]}
34... Rxb4 {[%clk 0:00:16]} 35. Bxd7 {[%clk 0:00:15]} 35... Rb7 {[%clk
0:00:15.4]} 36. Bf5 {[%clk 0:00:15.1]} 36... Rc7 {[%clk 0:00:15.6]} 37. Ke3
{[%clk 0:00:14.9]} 37... Kf7 {[%clk 0:00:15.7]} 38. Kd3 {[%clk 0:00:15.4]} 38...
Ke7 {[%clk 0:00:16.2]} 39. c4 {[%clk 0:00:16]} 39... Kd6 {[%clk 0:00:16.3]} 40.
Kc3 {[%clk 0:00:16.3]} 40... Kc5 {[%clk 0:00:16.3]} 41. Ra5+ {[%clk 0:00:16.6]}
41... Kb6 {[%clk 0:00:16.6]} 42. Rb5+ {[%clk 0:00:17.1]} 42... Kc6 {[%clk
0:00:16.9]} 43. Kb4 {[%clk 0:00:17.6]} 43... Re7 {[%clk 0:00:14.8]} 44. Rc5+
{[%clk 0:00:16.9]} 44... Kb6 {[%clk 0:00:14.9]} 45. Rd5 {[%clk 0:00:17.2]} 45...
Rb7 {[%clk 0:00:13.7]} 46. c5+ {[%clk 0:00:15.8]} 46... Kc6+ {[%clk 0:00:13.8]}
47. Kc4 {[%clk 0:00:16.3]} 47... Rb5 {[%clk 0:00:13.2]} 48. Rd6+ {[%clk
0:00:16.2]} 1-0

[Event "*** Titled Tuesday Blitz"]
[Site "Chess.com"]
[Date "2020.04.21"]
[Round "5"]
[White "Kawhi_Leonard2"]
[Black "RestartingChess"]
[Result "0-1"]
[WhiteElo "2298"]
[BlackElo "2538"]
[TimeControl "180+1"]
[EndTime "10:57:07 PDT"]
[Termination "RestartingChess won by resignation"]

1. e4 {[%clk 0:03:00.9]} 1... d5 {[%clk 0:03:00.2]} 2. exd5 {[%clk 0:03:00.1]}
2... Qxd5 {[%clk 0:03:00.5]} 3. Nc3 {[%clk 0:03:00.3]} 3... Qd6 {[%clk
0:03:00.5]} 4. d4 {[%clk 0:02:58.6]} 4... Nf6 {[%clk 0:03:00.7]} 5. Nf3 {[%clk
0:02:58.8]} 5... Bg4 {[%clk 0:02:59.6]} 6. Nb5 {[%clk 0:02:53.1]} 6... Qd8
{[%clk 0:02:44]} 7. Bf4 {[%clk 0:02:51.1]} 7... Na6 {[%clk 0:02:38.9]} 8. h3
{[%clk 0:02:44.4]} 8... Bxf3 {[%clk 0:02:37.6]} 9. Qxf3 {[%clk 0:02:44.3]} 9...
c6 {[%clk 0:02:37.8]} 10. O-O-O {[%clk 0:02:31.6]} 10... Nd5 {[%clk 0:02:05.4]}
11. Bg3 {[%clk 0:02:18.5]} 11... e6 {[%clk 0:01:57.6]} 12. Nc3 {[%clk
0:02:15.6]} 12... Qa5 {[%clk 0:01:53.9]} 13. Nxd5 {[%clk 0:02:10]} 13... cxd5
{[%clk 0:01:53.5]} 14. Qb3 {[%clk 0:02:06.5]} 14... Qb6 {[%clk 0:01:42.3]} 15.
Bb5+ {[%clk 0:02:04.1]} 15... Kd8 {[%clk 0:01:37.9]} 16. Kb1 {[%clk 0:01:46.7]}
16... Nc7 {[%clk 0:01:30.9]} 17. Be2 {[%clk 0:01:29.9]} 17... Qxb3 {[%clk
0:01:29.7]} 18. axb3 {[%clk 0:01:29.4]} 18... Kd7 {[%clk 0:01:25.4]} 19. c4
{[%clk 0:01:29]} 19... Bd6 {[%clk 0:01:23.7]} 20. Bxd6 {[%clk 0:01:20.1]} 20...
Kxd6 {[%clk 0:01:24.6]} 21. c5+ {[%clk 0:01:20.1]} 21... Kc6 {[%clk 0:01:22]}
22. b4 {[%clk 0:01:19.9]} 22... a5 {[%clk 0:01:21.3]} 23. bxa5 {[%clk
0:01:12.9]} 23... Rxa5 {[%clk 0:01:22.2]} 24. Kc2 {[%clk 0:01:11]} 24... Rha8
{[%clk 0:01:21.3]} 25. f4 {[%clk 0:01:04.2]} 25... Ne8 {[%clk 0:01:12.9]} 26. g4
{[%clk 0:01:00.4]} 26... Nf6 {[%clk 0:01:12.8]} 27. Bd3 {[%clk 0:01:00.6]} 27...
Ne4 {[%clk 0:01:01.9]} 28. Bxe4 {[%clk 0:00:46.6]} 28... dxe4 {[%clk 0:01:01.7]}
29. f5 {[%clk 0:00:46.8]} 29... exf5 {[%clk 0:00:57.2]} 30. gxf5 {[%clk
0:00:46.2]} 30... Kd5 {[%clk 0:00:57.7]} 31. Rhf1 {[%clk 0:00:37]} 31... Ra4
{[%clk 0:00:53.3]} 32. Kc3 {[%clk 0:00:35.3]} 32... Rc4+ {[%clk 0:00:52.7]} 33.
Kb3 {[%clk 0:00:34.2]} 33... Rxd4 {[%clk 0:00:53]} 34. Rxd4+ {[%clk 0:00:33.1]}
34... Kxd4 {[%clk 0:00:53.9]} 35. f6 {[%clk 0:00:32.6]} 35... gxf6 {[%clk
0:00:49.4]} 36. Rxf6 {[%clk 0:00:32.5]} 36... Re8 {[%clk 0:00:49.4]} 37. Kc2
{[%clk 0:00:31.3]} 37... e3 {[%clk 0:00:45.4]} 38. Kd1 {[%clk 0:00:30.2]} 38...
Re7 {[%clk 0:00:44.6]} 39. c6 {[%clk 0:00:29.8]} 39... bxc6 {[%clk 0:00:42.4]}
40. Rxc6 {[%clk 0:00:29.9]} 40... Rb7 {[%clk 0:00:37.2]} 41. Rd6+ {[%clk
0:00:27.5]} 41... Ke4 {[%clk 0:00:37.3]} 42. Rf6 {[%clk 0:00:20.2]} 42... Ke5
{[%clk 0:00:19.7]} 43. Rf3 {[%clk 0:00:20.1]} 43... Kd4 {[%clk 0:00:20.1]} 44.
Rf4+ {[%clk 0:00:17]} 44... Kd3 {[%clk 0:00:20.2]} 45. b4 {[%clk 0:00:11.5]}
45... Ra7 {[%clk 0:00:18.4]} 46. Kc1 {[%clk 0:00:07.5]} 46... e2 {[%clk
0:00:16.4]} 0-1

[Event "*** Titled Tuesday Blitz"]
[Site "Chess.com"]
[Date "2020.04.21"]
[Round "5"]
[White "ChessMavenYeti"]
[Black "realmadridtv"]
[Result "0-1"]
[WhiteElo "2113"]
[BlackElo "2288"]
[TimeControl "180+1"]
[EndTime "10:57:07 PDT"]
[Termination "realmadridtv won by resignation"]

1. Nf3 {[%clk 0:03:00.9]} 1... Nf6 {[%clk 0:02:59.9]} 2. g3 {[%clk 0:02:51.1]}
2... b6 {[%clk 0:03:00.8]} 3. Bg2 {[%clk 0:02:51.8]} 3... Bb7 {[%clk 0:02:58.8]}
4. O-O {[%clk 0:02:52.7]} 4... g6 {[%clk 0:02:58.6]} 5. d3 {[%clk 0:02:53.1]}
5... Bg7 {[%clk 0:02:58.3]} 6. e4 {[%clk 0:02:53.6]} 6... O-O {[%clk 0:02:58.5]}
7. Nbd2 {[%clk 0:02:53.8]} 7... c5 {[%clk 0:02:57.9]} 8. c3 {[%clk 0:02:54.1]}
8... Nc6 {[%clk 0:02:54.9]} 9. d4 {[%clk 0:02:53.5]} 9... cxd4 {[%clk
0:02:53.5]} 10. cxd4 {[%clk 0:02:54.4]} 10... d5 {[%clk 0:02:53.8]} 11. e5
{[%clk 0:02:53.4]} 11... Ne4 {[%clk 0:02:53.8]} 12. Re1 {[%clk 0:02:49.6]} 12...
Rc8 {[%clk 0:02:53.1]} 13. Nxe4 {[%clk 0:02:45.1]} 13... dxe4 {[%clk 0:02:52.9]}
14. Rxe4 {[%clk 0:02:46]} 14... Qd5 {[%clk 0:02:29]} 15. Re1 {[%clk 0:02:38]}
15... Rfd8 {[%clk 0:02:26.1]} 16. Be3 {[%clk 0:02:36.3]} 16... Nb4 {[%clk
0:02:16.7]} 17. Nh4 {[%clk 0:02:31.6]} 17... Qd7 {[%clk 0:02:13.4]} 18. Bxb7
{[%clk 0:02:30.1]} 18... Qxb7 {[%clk 0:02:14.3]} 19. Rc1 {[%clk 0:02:25.7]}
19... Rxc1 {[%clk 0:02:10.1]} 20. Qxc1 {[%clk 0:02:24.7]} 20... Nd3 {[%clk
0:02:08.1]} 21. Qd2 {[%clk 0:02:24.2]} 21... Nxe1 {[%clk 0:02:02.3]} 22. Qxe1
{[%clk 0:02:25.1]} 22... Qd5 {[%clk 0:01:53.9]} 23. b3 {[%clk 0:02:22.6]} 23...
Rc8 {[%clk 0:01:50.8]} 24. Ng2 {[%clk 0:02:21.7]} 24... e6 {[%clk 0:01:33.1]}
25. Qd2 {[%clk 0:02:11.4]} 25... Qe4 {[%clk 0:01:30.2]} 26. h3 {[%clk 0:02:08]}
26... Qc2 {[%clk 0:01:25.2]} 27. Qb4 {[%clk 0:02:04.6]} 27... Qxa2 {[%clk
0:01:23.2]} 28. h4 {[%clk 0:01:58.5]} 28... Qa6 {[%clk 0:01:13.5]} 29. h5 {[%clk
0:01:55.8]} 29... Bf8 {[%clk 0:01:13.6]} 30. Qd2 {[%clk 0:01:54.8]} 30... Qa5
{[%clk 0:01:11.5]} 31. Qd1 {[%clk 0:01:54.1]} 31... Qd5 {[%clk 0:01:01.8]} 32.
Qg4 {[%clk 0:01:52.7]} 32... Qxb3 {[%clk 0:00:57.2]} 33. Nf4 {[%clk 0:01:49.8]}
33... Qb1+ {[%clk 0:00:56.1]} 34. Kh2 {[%clk 0:01:49.6]} 34... Qf5 {[%clk
0:00:55.1]} 35. Qe2 {[%clk 0:01:47.3]} 35... a5 {[%clk 0:00:51.3]} 36. hxg6
{[%clk 0:01:46.9]} 36... hxg6 {[%clk 0:00:50.5]} 37. Nh3 {[%clk 0:01:46.2]}
37... Rc2 {[%clk 0:00:46.6]} 38. Qb5 {[%clk 0:01:44]} 38... Ra2 {[%clk 0:00:39]}
39. Qxb6 {[%clk 0:01:43.6]} 39... a4 {[%clk 0:00:37.5]} 40. Qd8 {[%clk 0:01:39]}
40... Qh5 {[%clk 0:00:30.3]} 41. Kg2 {[%clk 0:01:34.8]} 41... Ra3 {[%clk
0:00:25.4]} 42. Nf4 {[%clk 0:01:25.1]} 42... Qf5 {[%clk 0:00:24.2]} 43. Bd2
{[%clk 0:01:22.5]} 43... Ra2 {[%clk 0:00:22.3]} 44. Bb4 {[%clk 0:01:20.6]} 44...
Qe4+ {[%clk 0:00:19.6]} 45. Kh3 {[%clk 0:01:17.5]} 45... Qh1+ {[%clk 0:00:16.4]}
46. Kg4 {[%clk 0:01:17.1]} 46... Qh6 {[%clk 0:00:15.8]} 47. d5 {[%clk
0:01:10.7]} 47... exd5 {[%clk 0:00:14.4]} 48. Nxd5 {[%clk 0:01:10.7]} 48... Rxf2
{[%clk 0:00:13.3]} 49. Nf6+ {[%clk 0:01:08.1]} 49... Rxf6 {[%clk 0:00:12.9]} 50.
exf6 {[%clk 0:01:08.6]} 50... a3 {[%clk 0:00:12.6]} 51. Bxa3 {[%clk 0:01:08.3]}
51... Qh5+ {[%clk 0:00:12.1]} 52. Kf4 {[%clk 0:01:08.5]} 52... Qf5+ {[%clk
0:00:11.2]} 53. Ke3 {[%clk 0:01:07.8]} 53... Qg5+ {[%clk 0:00:10.8]} 54. Kd4
{[%clk 0:01:04.9]} 54... Qg4+ {[%clk 0:00:08.8]} 55. Kc3 {[%clk 0:00:58.6]}
55... Qxg3+ {[%clk 0:00:08.5]} 56. Kc2 {[%clk 0:00:58.3]} 56... Qxa3 {[%clk
0:00:08.8]} 57. Qd5 {[%clk 0:00:57.4]} 57... Qc5+ {[%clk 0:00:08.9]} 58. Qxc5
{[%clk 0:00:56.7]} 58... Bxc5 {[%clk 0:00:09.8]} 59. Kd3 {[%clk 0:00:57.4]}
59... Bf8 {[%clk 0:00:10]} 60. Ke4 {[%clk 0:00:58.3]} 60... Bg7 {[%clk
0:00:10.9]} 61. Kf4 {[%clk 0:00:58.9]} 61... Bxf6 {[%clk 0:00:11.3]} 62. Kg4
{[%clk 0:00:59.1]} 62... Kg7 {[%clk 0:00:12.2]} 63. Kf4 {[%clk 0:01:00]} 63...
Be7 {[%clk 0:00:13]} 64. Kg4 {[%clk 0:01:00.9]} 64... f5+ {[%clk 0:00:13.9]} 65.
Kf4 {[%clk 0:01:01.8]} 65... Bf6 {[%clk 0:00:14.5]} 66. Kf3 {[%clk 0:01:02.6]}
66... Kf7 {[%clk 0:00:15.4]} 67. Kf2 {[%clk 0:01:03.2]} 67... Ke6 {[%clk
0:00:16.3]} 0-1

[Event "*** Titled Tuesday Blitz"]
[Site "Chess.com"]
[Date "2020.04.21"]
[Round "5"]
[White "Paralinch"]
[Black "jaskol95"]
[Result "1-0"]
[WhiteElo "2947"]
[BlackElo "2389"]
[TimeControl "180+1"]
[EndTime "10:57:08 PDT"]
[Termination "Paralinch won by resignation"]

1. e4 {[%clk 0:03:00.9]} 1... e6 {[%clk 0:02:58.4]} 2. d4 {[%clk 0:03:00.8]}
2... d5 {[%clk 0:02:59]} 3. exd5 {[%clk 0:03:01.7]} 3... exd5 {[%clk 0:02:59.4]}
4. Nf3 {[%clk 0:03:02.4]} 4... Bd6 {[%clk 0:02:59.4]} 5. c4 {[%clk 0:03:02.2]}
5... c6 {[%clk 0:02:58.5]} 6. Nc3 {[%clk 0:03:02.2]} 6... Ne7 {[%clk 0:02:59]}
7. h3 {[%clk 0:02:59]} 7... h6 {[%clk 0:02:59.3]} 8. Bd3 {[%clk 0:02:59.1]} 8...
O-O {[%clk 0:02:58.7]} 9. O-O {[%clk 0:02:59.2]} 9... dxc4 {[%clk 0:02:49.2]}
10. Bxc4 {[%clk 0:02:59.2]} 10... Nd7 {[%clk 0:02:49]} 11. Bb3 {[%clk
0:02:59.4]} 11... Nf6 {[%clk 0:02:47.2]} 12. Ne5 {[%clk 0:02:59.3]} 12... Ned5
{[%clk 0:02:42]} 13. Qf3 {[%clk 0:02:58.2]} 13... Be6 {[%clk 0:02:38.2]} 14. Bd2
{[%clk 0:02:55.4]} 14... Qb6 {[%clk 0:02:16.3]} 15. Nxd5 {[%clk 0:02:37.6]}
15... Bxd5 {[%clk 0:02:11.9]} 16. Bxd5 {[%clk 0:02:37.8]} 16... Nxd5 {[%clk
0:01:45.6]} 17. Nd7 {[%clk 0:02:37.8]} 17... Qxb2 {[%clk 0:01:40.9]} 18. Nxf8
{[%clk 0:02:38]} 18... Qxd2 {[%clk 0:01:36]} 19. Rfd1 {[%clk 0:02:38.4]} 19...
Qc3 {[%clk 0:01:18.4]} 20. Nd7 {[%clk 0:02:31.9]} 20... Qxf3 {[%clk 0:01:17.1]}
21. gxf3 {[%clk 0:02:32.8]} 21... Rd8 {[%clk 0:01:09.4]} 22. Nc5 {[%clk
0:02:28.9]} 22... Nc3 {[%clk 0:00:57.2]} 23. Re1 {[%clk 0:02:09.2]} 23... b6
{[%clk 0:00:36.1]} 24. Ne4 {[%clk 0:02:05.5]} 24... Bb4 {[%clk 0:00:34]} 25. a3
{[%clk 0:02:02.3]} 25... Nxe4 {[%clk 0:00:27.4]} 26. Rxe4 {[%clk 0:01:46.2]}
26... Bc3 {[%clk 0:00:27.4]} 27. Rd1 {[%clk 0:01:46.8]} 27... c5 {[%clk
0:00:25.9]} 28. d5 {[%clk 0:01:19.4]} 28... Bd4 {[%clk 0:00:26]} 29. Re7 {[%clk
0:01:19.9]} 29... Rxd5 {[%clk 0:00:21.3]} 30. Kf1 {[%clk 0:01:20.4]} 30... a5
{[%clk 0:00:20.6]} 31. a4 {[%clk 0:01:13.5]} 31... Kf8 {[%clk 0:00:18.8]} 32.
Rb7 {[%clk 0:01:12.6]} 32... Rf5 {[%clk 0:00:17.2]} 33. Rd3 {[%clk 0:01:08.5]}
33... Rf4 {[%clk 0:00:17.4]} 34. Rxb6 {[%clk 0:01:01.2]} 34... Ke7 {[%clk
0:00:17.7]} 35. Rb8 {[%clk 0:01:01.6]} 35... Kd7 {[%clk 0:00:17.5]} 36. Rb5
{[%clk 0:01:00.3]} 36... Kc6 {[%clk 0:00:17.7]} 37. Ke2 {[%clk 0:00:55.9]} 37...
c4 {[%clk 0:00:15.8]} 38. Rd1 {[%clk 0:00:55.7]} 38... Bc5 {[%clk 0:00:10.8]}
39. Rxa5 {[%clk 0:00:52.3]} 39... Rf6 {[%clk 0:00:10.4]} 40. Rc1 {[%clk
0:00:50.8]} 40... Re6+ {[%clk 0:00:10]} 41. Kf1 {[%clk 0:00:51.2]} 41... Kb6
{[%clk 0:00:05.1]} 42. Rb5+ {[%clk 0:00:51.3]} 42... Kc6 {[%clk 0:00:05.6]} 43.
Rxc4 {[%clk 0:00:51.7]} 43... Re5 {[%clk 0:00:06.3]} 44. f4 {[%clk 0:00:43.7]}
44... Rf5 {[%clk 0:00:05.9]} 45. Ke2 {[%clk 0:00:42.5]} 45... g5 {[%clk
0:00:06]} 46. Kf3 {[%clk 0:00:37.2]} 46... gxf4 {[%clk 0:00:05.4]} 47. Rbxc5+
{[%clk 0:00:34.9]} 47... Rxc5 {[%clk 0:00:05.5]} 48. Rxc5+ {[%clk 0:00:35.8]}
48... Kxc5 {[%clk 0:00:06.4]} 49. Kxf4 {[%clk 0:00:36.7]} 49... Kb4 {[%clk
0:00:07.1]} 50. Kf5 {[%clk 0:00:37.3]} 50... Kxa4 {[%clk 0:00:07.6]} 51. Kf6
{[%clk 0:00:37.9]} 51... Kb4 {[%clk 0:00:08.3]} 52. Kxf7 {[%clk 0:00:38.5]}
52... Kc5 {[%clk 0:00:09.2]} 53. Kg6 {[%clk 0:00:38.7]} 53... Kd4 {[%clk
0:00:10]} 54. f4 {[%clk 0:00:38.8]} 1-0